fUSD/lending_fUSD_20240418
["ID","MTS","AMOUNT","RATE_DAILY","PERIOD"]
[322885780,1713479449493,-553.48727202,0.00017607,2]
[322885781,1713479449502,-201.42556109,0.00017616,2]
[322885782,1713479449512,-156.59106703,0.00017616,2]
[322885783,1713479449521,-155.23436945,0.00017616,2]
[322885784,1713479449531,-4401.60261938,0.00017616,2]
[322885785,1713479449541,-304.65280712,0.00017616,2]
[322885786,1713479449550,-204.72895838,0.00017616,2]
[322885787,1713479449559,-155.67107352,0.00017616,2]
[322885788,1713479449569,-155.1683543,0.00017616,2]
[322885789,1713479449578,-155.39161747,0.00017616,2]
[322885790,1713479449588,-263.42881071,0.00017616,2]
[322885791,1713479449598,-308.27305272,0.00017616,2]
[322885792,1713479449607,-164.48376272,0.00017616,2]
[322885793,1713479449617,-7951.94,0.00017616,2]
[322885794,1713479449627,-1953.57,0.00017616,2]
[322885795,1713479449636,-96061.29,0.00017616,2]
[322885796,1713479449646,-9731.11,0.00017616,2]
[322885797,1713479449656,-360.476867,0.00017616,2]
[322885798,1713479449665,-360.476867,0.00017616,2]
[322885799,1713479449675,-215.023822,0.00017616,2]
[322885800,1713479449684,-151.0,0.00017616,2]
[322885801,1713479449694,-215.023822,0.00017616,2]
[322885802,1713479449704,-151.0,0.00017616,2]
[322885803,1713479449714,-166.03219,0.00017616,2]
[322885804,1713479449724,-166.03219,0.00017616,2]
[322885805,1713479449734,-290.455952,0.00017616,2]
[322885806,1713479449744,-290.455952,0.00017616,2]
[322885807,1713479449754,-9072.51,0.00017616,2]
[322885808,1713479449764,-2057.558154,0.00017616,2]
[322885809,1713479449775,-2057.558154,0.00017616,2]
[322885810,1713479449784,-3793.69,0.00017616,2]
[322885811,1713479449795,-5801.29,0.00017616,2]
[322885812,1713479449806,-737.31,0.00017616,2]
[322885813,1713479449816,-237.493031,0.00017616,2]
[322885814,1713479449825,-237.493031,0.00017616,2]
[322885815,1713479449836,-151.0,0.00017616,2]
[322885816,1713479449847,-452.848263,0.00017616,2]
[322885817,1713479449857,-452.848263,0.00017616,2]
[322885818,1713479449866,-9359.99,0.00017616,2]
[322885819,1713479449876,-151.0,0.00017616,2]
[322885820,1713479449886,-651.132384,0.00017616,2]
[322885821,1713479449896,-651.132384,0.00017616,2]
[322885822,1713479449906,-16870.05,0.00017616,2]
[322885823,1713479449919,-3644.98,0.00017616,2]
[322885824,1713479449929,-3644.98,0.00017616,2]
[322885825,1713479449939,-6772.51,0.00017616,2]
[322885826,1713479449948,-6320.96,0.00017616,2]
[322885827,1713479449959,-6320.96,0.00017616,2]
[322885828,1713479449968,-713.086236,0.00017616,2]
[322885829,1713479449978,-713.086236,0.00017616,2]
[322885830,1713479449988,-7708.79,0.00017616,2]
[322885831,1713479449999,-7708.79,0.00017616,2]
[322885832,1713479450010,-348.105213,0.00017616,2]
[322885833,1713479450019,-348.105213,0.00017616,2]
[322885834,1713479450030,-8766.26,0.00017616,2]
[322885835,1713479450039,-8766.26,0.00017616,2]
[322885836,1713479450049,-964.09,0.00017616,2]
[322885837,1713479450059,-964.09,0.00017616,2]
[322885838,1713479450070,-10346.74,0.00017616,2]
[322885839,1713479450080,-14550.9,0.00017616,2]
[322885840,1713479450091,-2191.89,0.00017616,2]
[322885841,1713479450102,-2191.89,0.00017616,2]
[322885842,1713479450112,-256.026663,0.00017616,2]
[322885843,1713479450122,-702.94,0.00017616,2]
[322885844,1713479450132,-702.94,0.00017616,2]
[322885845,1713479450142,-256.026663,0.00017616,2]
[322885846,1713479450152,-8112.9,0.00017616,2]
[322885847,1713479450162,-8112.9,0.00017616,2]
[322885848,1713479450172,-1657.71,0.00017616,2]
[322885849,1713479450182,-10414.14,0.00017616,2]
[322885850,1713479450191,-10414.14,0.00017616,2]
[322885851,1713479450202,-11165.25,0.00017616,2]
[322885852,1713479450211,-11165.25,0.00017616,2]
[322885853,1713479450221,-411.169864,0.00017616,2]
[322885854,1713479450230,-8025.26,0.00017616,2]
[322885855,1713479450241,-8025.26,0.00017616,2]
[322885856,1713479450250,-5187.3,0.00017616,2]
[322885857,1713479450260,-411.169864,0.00017616,2]
[322885858,1713479450270,-5019.67,0.00017616,2]
[322885859,1713479450280,-5019.67,0.00017616,2]
[322885860,1713479450289,-2913.45,0.00017616,2]
[322885861,1713479450299,-1240.54,0.00017616,2]
[322885862,1713479450309,-151.0,0.00017616,2]
[322885863,1713479450319,-151.21414,0.00017616,2]
[322885864,1713479450328,-13732.34,0.00017616,2]
[322885865,1713479450339,-13732.34,0.00017616,2]
[322885866,1713479450348,-43505.78,0.00017616,2]
[322885867,1713479450358,-5317.45,0.00017616,2]
[322885868,1713479450367,-151.21414,0.00017616,2]
[322885869,1713479450376,-5317.45,0.00017616,2]
[322885870,1713479450386,-151.0,0.00017616,2]
[322885871,1713479450395,-151.0,0.00017616,2]
[322885872,1713479450405,-5110.55,0.00017616,2]
[322885873,1713479450414,-9617.61,0.00017616,2]
[322885874,1713479450424,-9617.61,0.00017616,2]
[322885875,1713479450433,-9232.32,0.00017616,2]
[322885876,1713479450443,-9232.32,0.00017616,2]
[322885877,1713479450453,-4430.683006,0.00017616,2]
[322885878,1713479450462,-4430.683006,0.00017616,2]
[322885879,1713479450472,-1900.45,0.00017616,2]
[322885880,1713479450482,-20313.76,0.00017616,2]
[322885881,1713479450492,-9716.51,0.00017616,2]
[322885882,1713479450502,-9716.51,0.00017616,2]
[322885883,1713479450512,-12604.02,0.00017616,2]
[322885884,1713479450521,-12604.02,0.00017616,2]
[322885885,1713479450532,-4430.683006,0.00017616,2]
[322885886,1713479450542,-4430.683002,0.00017616,2]
[322885887,1713479450552,-14719.5,0.00017616,2]
[322885888,1713479450562,-4427.84,0.00017616,2]
[322885889,1713479450573,-4427.84,0.00017616,2]
[322885890,1713479450583,-3386.41,0.00017616,2]
[322885891,1713479450593,-3386.41,0.00017616,2]
[322885892,1713479450603,-587.86,0.00017616,2]
[322885893,1713479450613,-151.0,0.00017616,2]
[322885894,1713479450622,-151.0,0.00017616,2]
[322885895,1713479450632,-8699.66,0.00017616,2]
[322885896,1713479450642,-8699.66,0.00017616,2]
[322885897,1713479450653,-29533.65,0.00017616,2]
[322885898,1713479450664,-21416.54,0.00017616,2]
[322885899,1713479450673,-21416.54,0.00017616,2]
[322885900,1713479450684,-8353.24,0.00017616,2]
[322885901,1713479450694,-6193.86,0.00017616,2]
[322885902,1713479450704,-9812.78,0.00017616,2]
[322885903,1713479450714,-6193.86,0.00017616,2]
[322885904,1713479450724,-13834.89,0.00017616,2]
[322885905,1713479450734,-13834.89,0.00017616,2]
[322885906,1713479450744,-1114.639048,0.00017616,2]
[322885907,1713479450754,-1114.639048,0.00017616,2]
[322885908,1713479450764,-1114.639048,0.00017616,2]
[322885909,1713479450774,-1114.639056,0.00017616,2]
[322885910,1713479450784,-14269.56,0.00017616,2]
[322885911,1713479450794,-2447.08,0.00017616,2]
[322885912,1713479450804,-2447.08,0.00017616,2]
[322885913,1713479450814,-1000.0,0.00017617,2]
[322885914,1713479450825,-157.041907,0.00017617,2]
[322885915,1713479450837,-157.041907,0.00017617,2]
[322885916,1713479450848,-157.041907,0.00017617,2]
[322885917,1713479450858,-156.041907,0.00017617,2]
[322885918,1713479450869,-3026.30106579,0.00017617,2]
[322885919,1713479450879,-7951.94,0.00017617,2]
[322885920,1713479450889,-7951.94,0.00017617,2]
[322885921,1713479450899,-7951.94,0.00017617,2]
[322885922,1713479450910,-1953.57,0.00017617,2]
[322885923,1713479450925,-1953.57,0.00017617,2]
[322885924,1713479450934,-1953.57,0.00017617,2]
[322885925,1713479450944,-96061.29,0.00017617,2]
[322885926,1713479450954,-96061.29,0.00017617,2]
[322885927,1713479450966,-96061.29,0.00017617,2]
[322885928,1713479450976,-9731.11,0.00017617,2]
[322885929,1713479450986,-9731.11,0.00017617,2]
[322885930,1713479450997,-9731.11,0.00017617,2]
[322885931,1713479451008,-360.476867,0.00017617,2]
[322885932,1713479451017,-360.476867,0.00017617,2]
[322885933,1713479451028,-215.023822,0.00017617,2]
[322885934,1713479451038,-151.0,0.00017617,2]
[322885935,1713479451048,-215.023822,0.00017617,2]
[322885936,1713479451058,-151.0,0.00017617,2]
[322885937,1713479451067,-166.03219,0.00017617,2]
[322885938,1713479451077,-166.03219,0.00017617,2]
[322885939,1713479451088,-290.455952,0.00017617,2]
[322885940,1713479451098,-290.455952,0.00017617,2]
[322885941,1713479451108,-9072.51,0.00017617,2]
[322885942,1713479451118,-9072.51,0.00017617,2]
[322885943,1713479451128,-9072.51,0.00017617,2]
[322885944,1713479451137,-2057.558154,0.00017617,2]
[322885945,1713479451147,-2057.558154,0.00017617,2]
[322885946,1713479451157,-3793.69,0.00017617,2]
[322885947,1713479451168,-3793.69,0.00017617,2]
[322885948,1713479451177,-3793.69,0.00017617,2]
[322885949,1713479451188,-5801.29,0.00017617,2]
[322885950,1713479451198,-5801.29,0.00017617,2]
[322885951,1713479451209,-5801.29,0.00017617,2]
[322885952,1713479451219,-737.31,0.00017617,2]
[322885953,1713479451229,-237.493031,0.00017617,2]
[322885954,1713479451239,-737.31,0.00017617,2]
[322885955,1713479451249,-737.31,0.00017617,2]
[322885956,1713479451258,-237.493031,0.00017617,2]
[322885957,1713479451267,-281.129966,0.00017617,2]
[322885958,1713479451277,-452.848263,0.00017617,2]
[322885959,1713479451287,-452.848263,0.00017617,2]
[322885960,1713479451298,-452.848263,0.00017617,2]
[322885961,1713479451308,-452.848263,0.00017617,2]
[322885962,1713479451318,-9359.99,0.00017617,2]
[322885963,1713479451327,-452.848263,0.00017617,2]
[322885964,1713479451339,-9359.99,0.00017617,2]
[322885965,1713479451349,-452.848263,0.00017617,2]
[322885966,1713479451358,-9359.99,0.00017617,2]
[322885967,1713479451368,-151.0,0.00017617,2]
[322885968,1713479451377,-151.0,0.00017617,2]
[322885969,1713479451388,-151.0,0.00017617,2]
[322885970,1713479451398,-651.132384,0.00017617,2]
[322885971,1713479451408,-651.132384,0.00017617,2]
[322885972,1713479451418,-651.132384,0.00017617,2]
[322885973,1713479451428,-651.132384,0.00017617,2]
[322885974,1713479451438,-651.132384,0.00017617,2]
[322885975,1713479451447,-651.132384,0.00017617,2]
[322885976,1713479451457,-16870.05,0.00017617,2]
[322885977,1713479451467,-16870.05,0.00017617,2]
[322885978,1713479451476,-16870.05,0.00017617,2]
[322885979,1713479451487,-3644.98,0.00017617,2]
[322885980,1713479451497,-3644.98,0.00017617,2]
[322885981,1713479451507,-3644.98,0.00017617,2]
[322885982,1713479451516,-3644.98,0.00017617,2]
[322885983,1713479451526,-3644.98,0.00017617,2]
[322885984,1713479451536,-3644.98,0.00017617,2]
[322885985,1713479451546,-6772.51,0.00017617,2]
[322885986,1713479451556,-6772.51,0.00017617,2]
[322885987,1713479451567,-6772.51,0.00017617,2]
[322885988,1713479451577,-3644.98,0.00017617,2]
[322885989,1713479451587,-3645.11481063,0.00017617,2]
[322885990,1713479451597,-6320.96,0.00017617,2]
[322885991,1713479451607,-6320.96,0.00017617,2]
[322885992,1713479451616,-6320.96,0.00017617,2]
[322885993,1713479451626,-713.086236,0.00017617,2]
[322885994,1713479451636,-6320.96,0.00017617,2]
[322885995,1713479451645,-713.086236,0.00017617,2]
[322885996,1713479451655,-6320.96,0.00017617,2]
[322885997,1713479451666,-713.086236,0.00017617,2]
[322885998,1713479451675,-6320.96,0.00017617,2]
[322885999,1713479451685,-6320.96,0.00017617,2]
[322886000,1713479451695,-6321.12898987,0.00017617,2]
[322886001,1713479451704,-713.086236,0.00017617,2]
[322886002,1713479451714,-713.086236,0.00017617,2]
[322886003,1713479451724,-713.086236,0.00017617,2]
[322886004,1713479451735,-7708.79,0.00017617,2]
[322886005,1713479451745,-348.105213,0.00017617,2]
[322886006,1713479451754,-7708.79,0.00017617,2]
[322886007,1713479451764,-348.105213,0.00017617,2]
[322886008,1713479451774,-7708.79,0.00017617,2]
[322886009,1713479451784,-7708.79,0.00017617,2]
[322886010,1713479451794,-7708.79,0.00017617,2]
[322886011,1713479451804,-7708.79,0.00017617,2]
[322886012,1713479451814,-7708.79,0.00017617,2]
[322886013,1713479451824,-7709.02359816,0.00017617,2]
[322886014,1713479451834,-348.105213,0.00017617,2]
[322886015,1713479451844,-348.105206,0.00017617,2]
[322886016,1713479452148,-8766.26,0.00017617,2]
[322886017,1713479452170,-8766.26,0.00017617,2]
[322886018,1713479452179,-8766.26,0.00017617,2]
[322886019,1713479452189,-8766.26,0.00017617,2]
[322886020,1713479452198,-8766.26,0.00017617,2]
[322886021,1713479452208,-8766.26,0.00017617,2]
[322886022,1713479452217,-8766.26,0.00017617,2]
[322886023,1713479452226,-8766.28774925,0.00017617,2]
[322886024,1713479452235,-964.09,0.00017617,2]
[322886025,1713479452245,-964.09,0.00017617,2]
[322886026,1713479452254,-964.09,0.00017617,2]
[322886027,1713479452263,-964.09,0.00017617,2]
[322886028,1713479452273,-964.09,0.00017617,2]
[322886029,1713479452282,-10346.74,0.00017617,2]
[322886030,1713479452291,-964.09,0.00017617,2]
[322886031,1713479452300,-10346.74,0.00017617,2]
[322886032,1713479452309,-964.09,0.00017617,2]
[322886033,1713479452318,-10346.74,0.00017617,2]
[322886034,1713479452327,-964.12,0.00017617,2]
[322886035,1713479452336,-14550.9,0.00017617,2]
[322886036,1713479452346,-14550.9,0.00017617,2]
[322886037,1713479452355,-14550.9,0.00017617,2]
[322886038,1713479452364,-2191.89,0.00017617,2]
[322886039,1713479452373,-2191.89,0.00017617,2]
[322886040,1713479452382,-2191.89,0.00017617,2]
[322886041,1713479452391,-2191.89,0.00017617,2]
[322886042,1713479452400,-2191.89,0.00017617,2]
[322886043,1713479452410,-2191.89,0.00017617,2]
[322886044,1713479452418,-2191.89,0.00017617,2]
[322886045,1713479452427,-2191.93329833,0.00017617,2]
[322886046,1713479452437,-256.026663,0.00017617,2]
[322886047,1713479452447,-256.026663,0.00017617,2]
[322886048,1713479452456,-702.94,0.00017617,2]
[322886049,1713479452469,-702.94,0.00017617,2]
[322886050,1713479452479,-702.94,0.00017617,2]
[322886051,1713479452488,-702.94,0.00017617,2]
[322886052,1713479452497,-702.94,0.00017617,2]
[322886053,1713479452507,-702.94,0.00017617,2]
[322886054,1713479452517,-702.94,0.00017617,2]
[322886055,1713479452526,-703.04431898,0.00017617,2]
[322886056,1713479452536,-256.026663,0.00017617,2]
[322886057,1713479452545,-256.026657,0.00017617,2]
[322886058,1713479452554,-8112.9,0.00017617,2]
[322886059,1713479452563,-8112.9,0.00017617,2]
[322886060,1713479452572,-8112.9,0.00017617,2]
[322886061,1713479452582,-8112.9,0.00017617,2]
[322886062,1713479452592,-8112.9,0.00017617,2]
[322886063,1713479452601,-8112.9,0.00017617,2]
[322886064,1713479452610,-8112.9,0.00017617,2]
[322886065,1713479452620,-8112.92,0.00017617,2]
[322886066,1713479452630,-1657.71,0.00017617,2]
[322886067,1713479452639,-1657.71,0.00017617,2]
[322886068,1713479452648,-1657.71,0.00017617,2]
[322886069,1713479452657,-10414.14,0.00017617,2]
[322886070,1713479452667,-10414.14,0.00017617,2]
[322886071,1713479452676,-10414.14,0.00017617,2]
[322886072,1713479452686,-10414.14,0.00017617,2]
[322886073,1713479452695,-10414.14,0.00017617,2]
[322886074,1713479452706,-10414.14,0.00017617,2]
[322886075,1713479452715,-10414.14,0.00017617,2]
[322886076,1713479452725,-10414.32505941,0.00017617,2]
[322886077,1713479452734,-11165.25,0.00017617,2]
[322886078,1713479452743,-11165.25,0.00017617,2]
[322886079,1713479452753,-11165.25,0.00017617,2]
[322886080,1713479452762,-11165.25,0.00017617,2]
[322886081,1713479452771,-11165.25,0.00017617,2]
[322886082,1713479452782,-11165.25,0.00017617,2]
[322886083,1713479452790,-11165.25,0.00017617,2]
[322886084,1713479452800,-11165.38653632,0.00017617,2]
[322886085,1713479452809,-411.169864,0.00017617,2]
[322886086,1713479452818,-411.169864,0.00017617,2]
[322886087,1713479452828,-8025.26,0.00017617,2]
[322886088,1713479452838,-8025.26,0.00017617,2]
[322886089,1713479452848,-8025.26,0.00017617,2]
[322886090,1713479452858,-5187.3,0.00017617,2]
[322886091,1713479452867,-8025.26,0.00017617,2]
[322886092,1713479452877,-5187.3,0.00017617,2]
[322886093,1713479452886,-8025.26,0.00017617,2]
[322886094,1713479452896,-5187.3,0.00017617,2]
[322886095,1713479452905,-8025.26,0.00017617,2]
[322886096,1713479452916,-8025.26,0.00017617,2]
[322886097,1713479452927,-8025.26172106,0.00017617,2]
[322886098,1713479452936,-411.169864,0.00017617,2]
[322886099,1713479452945,-411.169859,0.00017617,2]
[322886100,1713479452955,-5019.67,0.00017617,2]
[322886101,1713479452966,-5019.67,0.00017617,2]
[322886102,1713479452975,-5019.67,0.00017617,2]
[322886103,1713479452985,-5019.67,0.00017617,2]
[322886104,1713479452996,-5019.67,0.00017617,2]
[322886105,1713479453006,-5019.67,0.00017617,2]
[322886106,1713479453015,-5019.67,0.00017617,2]
[322886107,1713479453025,-5019.75458093,0.00017617,2]
[322886108,1713479453034,-2913.45,0.00017617,2]
[322886109,1713479453044,-2913.45,0.00017617,2]
[322886110,1713479453053,-2913.45,0.00017617,2]
[322886111,1713479453062,-1240.54,0.00017617,2]
[322886112,1713479453071,-1240.54,0.00017617,2]
[322886113,1713479453081,-151.0,0.00017617,2]
[322886114,1713479453091,-1240.54,0.00017617,2]
[322886115,1713479453100,-151.0,0.00017617,2]
[322886116,1713479453109,-151.21414,0.00017617,2]
[322886117,1713479453118,-151.21414,0.00017617,2]
[322886118,1713479453127,-13732.34,0.00017617,2]
[322886119,1713479453137,-13732.34,0.00017617,2]
[322886120,1713479453146,-43505.78,0.00017617,2]
[322886121,1713479453155,-13732.34,0.00017617,2]
[322886122,1713479453165,-151.21414,0.00017617,2]
[322886123,1713479453174,-43505.78,0.00017617,2]
[322886124,1713479453183,-13732.34,0.00017617,2]
[322886125,1713479453193,-5317.45,0.00017617,2]
[322886126,1713479453202,-151.214134,0.00017617,2]
[322886127,1713479453211,-13732.34,0.00017617,2]
[322886128,1713479453220,-43505.78,0.00017617,2]
[322886129,1713479453230,-5317.45,0.00017617,2]
[322886130,1713479453239,-5317.45,0.00017617,2]
[322886131,1713479453248,-13732.34,0.00017617,2]
[322886132,1713479453258,-5317.45,0.00017617,2]
[322886133,1713479453267,-13732.34,0.00017617,2]
[322886134,1713479453276,-5317.45,0.00017617,2]
[322886135,1713479453286,-5317.45,0.00017617,2]
[322886136,1713479453295,-13732.52751505,0.00017617,2]
[322886137,1713479453304,-5317.45,0.00017617,2]
[322886138,1713479453314,-5317.57255741,0.00017617,2]
[322886139,1713479453324,-5110.55,0.00017617,2]
[322886140,1713479453334,-5110.55,0.00017617,2]
[322886141,1713479453344,-5110.55,0.00017617,2]
[322886142,1713479453353,-9617.61,0.00017617,2]
[322886143,1713479453363,-9617.61,0.00017617,2]
[322886144,1713479453373,-9232.32,0.00017617,2]
[322886145,1713479453383,-9617.61,0.00017617,2]
[322886146,1713479453393,-9617.61,0.00017617,2]
[322886147,1713479453403,-9232.32,0.00017617,2]
[322886148,1713479453412,-9617.61,0.00017617,2]
[322886149,1713479453422,-9617.61,0.00017617,2]
[322886150,1713479453431,-9232.32,0.00017617,2]
[322886151,1713479453440,-9617.61,0.00017617,2]
[322886152,1713479453450,-9232.32,0.00017617,2]
[322886153,1713479453459,-9617.83438928,0.00017617,2]
[322886154,1713479453469,-9232.32,0.00017617,2]
[322886155,1713479453478,-9232.32,0.00017617,2]
[322886156,1713479453487,-9232.32,0.00017617,2]
[322886157,1713479453497,-9232.47217336,0.00017617,2]
[322886158,1713479453506,-1900.45,0.00017617,2]
[322886159,1713479453515,-1900.45,0.00017617,2]
[322886160,1713479453524,-1900.45,0.00017617,2]
[322886161,1713479453534,-20313.76,0.00017617,2]
[322886162,1713479453543,-20313.76,0.00017617,2]
[322886163,1713479453552,-20313.76,0.00017617,2]
[322886164,1713479453561,-9716.51,0.00017617,2]
[322886165,1713479453570,-9716.51,0.00017617,2]
[322886166,1713479453579,-9716.51,0.00017617,2]
[322886167,1713479453590,-9716.51,0.00017617,2]
[322886168,1713479453600,-9716.51,0.00017617,2]
[322886169,1713479453609,-9716.51,0.00017617,2]
[322886170,1713479453618,-12604.02,0.00017617,2]
[322886171,1713479453628,-9716.51,0.00017617,2]
[322886172,1713479453638,-12604.02,0.00017617,2]
[322886173,1713479453648,-12604.02,0.00017617,2]
[322886174,1713479453659,-9716.67,0.00017617,2]
[322886175,1713479453668,-12604.02,0.00017617,2]
[322886176,1713479453678,-12604.02,0.00017617,2]
[322886177,1713479453687,-12604.02,0.00017617,2]
[322886178,1713479453696,-12604.02,0.00017617,2]
[322886179,1713479453706,-12604.25408039,0.00017617,2]
[322886180,1713479453715,-14719.5,0.00017617,2]
[322886181,1713479453725,-14719.5,0.00017617,2]
[322886182,1713479453734,-14719.5,0.00017617,2]
[322886183,1713479453744,-4427.84,0.00017617,2]
[322886184,1713479453753,-4427.84,0.00017617,2]
[322886185,1713479453762,-4427.84,0.00017617,2]
[322886186,1713479453772,-3386.41,0.00017617,2]
[322886187,1713479453781,-587.86,0.00017617,2]
[322886188,1713479453790,-4427.84,0.00017617,2]
[322886189,1713479453799,-3386.41,0.00017617,2]
[322886190,1713479453808,-587.86,0.00017617,2]
[322886191,1713479453818,-4427.84,0.00017617,2]
[322886192,1713479453827,-3386.41,0.00017617,2]
[322886193,1713479453838,-4427.84,0.00017617,2]
[322886194,1713479453847,-587.86,0.00017617,2]
[322886195,1713479453856,-3386.41,0.00017617,2]
[322886196,1713479453865,-4427.84,0.00017617,2]
[322886197,1713479453875,-3386.41,0.00017617,2]
[322886198,1713479453884,-4427.90456736,0.00017617,2]
[322886199,1713479453893,-3386.41,0.00017617,2]
[322886200,1713479453903,-3386.41,0.00017617,2]
[322886201,1713479453913,-3386.56,0.00017617,2]
[322886202,1713479453926,-8699.66,0.00017617,2]
[322886203,1713479453935,-8699.66,0.00017617,2]
[322886204,1713479453945,-8699.66,0.00017617,2]
[322886205,1713479453954,-8699.66,0.00017617,2]
[322886206,1713479453964,-8699.66,0.00017617,2]
[322886207,1713479453974,-8699.66,0.00017617,2]
[322886208,1713479453983,-29533.65,0.00017617,2]
[322886209,1713479453994,-8699.66,0.00017617,2]
[322886210,1713479454003,-29533.65,0.00017617,2]
[322886211,1713479454012,-8699.89995588,0.00017617,2]
[322886212,1713479454022,-29533.65,0.00017617,2]
[322886213,1713479454031,-21416.54,0.00017617,2]
[322886214,1713479454040,-21416.54,0.00017617,2]
[322886215,1713479454050,-21416.54,0.00017617,2]
[322886216,1713479454059,-21416.54,0.00017617,2]
[322886217,1713479454069,-21416.54,0.00017617,2]
[322886218,1713479454079,-8353.24,0.00017617,2]
[322886219,1713479454090,-21416.54,0.00017617,2]
[322886220,1713479454099,-21416.54,0.00017617,2]
[322886221,1713479454109,-8353.24,0.00017617,2]
[322886222,1713479454119,-21416.58,0.00017617,2]
[322886223,1713479454128,-8353.24,0.00017617,2]
[322886224,1713479454138,-9812.78,0.00017617,2]
[322886225,1713479454148,-6193.86,0.00017617,2]
[322886226,1713479454157,-9812.78,0.00017617,2]
[322886227,1713479454167,-6193.86,0.00017617,2]
[322886228,1713479454176,-9812.78,0.00017617,2]
[322886229,1713479454186,-6193.86,0.00017617,2]
[322886230,1713479454195,-6193.86,0.00017617,2]
[322886231,1713479454204,-6193.86,0.00017617,2]
[322886232,1713479454213,-6193.86,0.00017617,2]
[322886233,1713479454222,-6193.86,0.00017617,2]
[322886234,1713479454231,-6194.05280569,0.00017617,2]
[322886235,1713479454239,-13834.89,0.00017617,2]
[322886236,1713479454248,-13834.89,0.00017617,2]
[322886237,1713479454257,-13834.89,0.00017617,2]
[322886238,1713479454266,-13834.89,0.00017617,2]
[322886239,1713479454275,-13834.89,0.00017617,2]
[322886240,1713479454284,-13834.89,0.00017617,2]
[322886241,1713479454293,-13834.89,0.00017617,2]
[322886242,1713479454302,-13834.9123151,0.00017617,2]
[322886243,1713479454311,-14269.56,0.00017617,2]
[322886244,1713479454320,-14269.56,0.00017617,2]
[322886245,1713479454329,-14269.56,0.00017617,2]
[322886246,1713479454339,-157.041907,0.00017618,2]
[322886247,1713479454350,-157.041907,0.00017618,2]
[322886248,1713479454359,-157.041907,0.00017618,2]
[322886249,1713479454369,-157.041907,0.00017618,2]
[322886250,1713479454380,-499.99,0.00017618,2]
[322886251,1713479454389,-223.83286196,0.00017618,2]
[322886252,1713479454398,-2267.47388973,0.00017618,2]
[322886253,1713479454407,-271.59951734,0.00017618,2]
[322886254,1713479454418,-245.68915645,0.00017618,2]
[322886255,1713479454429,-194.01529019,0.00017618,2]
[322886256,1713479454440,-684956.24942106,0.00017618,2]
[322886257,1713479454451,-211.80798569,0.00017618,2]
[322886258,1713479454461,-309.11591838,0.00017618,2]
[322886259,1713479454470,-160.48558962,0.00017618,2]
[322886260,1713479454479,-29666.8946686,0.00017618,2]
[322886261,1713479454489,-168.5948169,0.00017618,2]
[322886262,1713479454498,-236.01814319,0.00017618,2]
[322886263,1713479454508,-277.78803159,0.00017618,2]
[322886264,1713479454517,-687.84001768,0.00017618,2]
[322886265,1713479454526,-348.58580176,0.00017618,2]
[322886266,1713479454536,-7951.94,0.00017618,2]
[322886267,1713479454545,-7951.94,0.00017618,2]
[322886268,1713479454555,-7951.94,0.00017618,2]
[322886269,1713479454565,-1953.57,0.00017618,2]
[322886270,1713479454574,-1953.57,0.00017618,2]
[322886271,1713479454584,-1953.57,0.00017618,2]
[322886272,1713479454593,-96061.29,0.00017618,2]
[322886273,1713479454603,-96061.29,0.00017618,2]
[322886274,1713479454613,-96061.29,0.00017618,2]
[322886275,1713479454622,-9731.11,0.00017618,2]
[322886276,1713479454631,-9731.11,0.00017618,2]
[322886277,1713479454640,-360.476867,0.00017618,2]
[322886278,1713479454649,-9731.11,0.00017618,2]
[322886279,1713479454659,-360.476867,0.00017618,2]